fUSD/lending_fUSD_20260526
["ID","MTS","AMOUNT","RATE_DAILY","PERIOD"]
[423060035,1779807051000,-1000.0,0.0003917,120]
[423060036,1779807051000,-1000.0,0.0003917,120]
[423060038,1779807051000,-1000.0,0.0003917,120]
[423060039,1779807051000,-1000.0,0.0003917,120]
[423060037,1779807051000,-1000.0,0.0003917,120]
[423060040,1779807051000,-1000.0,0.0003917,120]
[423060042,1779807051000,-1000.0,0.0003917,120]
[423060041,1779807051000,-1000.0,0.0003917,120]
[423060026,1779807051000,-1165.05801855,0.0003917,120]
[423060075,1779807051000,-800.0,0.0003917,120]
[423060082,1779807051000,-800.0,0.0003917,120]
[423060077,1779807051000,-800.0,0.0003917,120]
[423060114,1779807051000,-30000.0,0.00039171,20]
[423060113,1779807051000,-500.0,0.00039171,2]
[423060109,1779807051000,-500.0,0.00039171,2]
[423060115,1779807051000,-1729.1,0.00039171,10]
[423060110,1779807051000,-318.53217096,0.00039171,2]
[423060111,1779807051000,-558.93691111,0.00039171,2]
[423060112,1779807051000,-10018.99999901,0.00039171,2]
[423060117,1779807051000,-1729.1,0.00039171,10]
[423060116,1779807051000,-1729.1,0.00039171,10]
[423060118,1779807051000,-1729.1,0.00039171,10]
[423060119,1779807051000,-1729.1,0.00039171,10]
[423060120,1779807051000,-1729.1,0.00039171,10]
[423060122,1779807051000,-1729.1,0.00039171,10]
[423060123,1779807051000,-1729.1,0.00039171,10]
[423060121,1779807051000,-1729.1,0.00039171,10]
[423060124,1779807051000,-1729.1,0.00039171,10]
[423060128,1779807051000,-1729.1,0.00039171,10]
[423060125,1779807051000,-1729.1,0.00039171,10]
[423060127,1779807051000,-1729.1,0.00039171,10]
[423060131,1779807051000,-1729.1,0.00039171,10]
[423060129,1779807051000,-1729.1,0.00039171,10]
[423060130,1779807051000,-1729.1,0.00039171,10]
[423060132,1779807051000,-1729.1,0.00039171,10]
[423060074,1779807051000,-246.87883498,0.0003917,120]
[423060134,1779807051000,-1729.1,0.00039171,10]
[423060136,1779807051000,-1729.1,0.00039171,10]
[423060135,1779807051000,-1729.1,0.00039171,10]
[423060108,1779807051000,-180.0,0.00039171,2]
[423060107,1779807051000,-1146.01905262,0.00039171,2]
[423060133,1779807051000,-1729.1,0.00039171,10]
[423060105,1779807051000,-433.35617811,0.0003917,7]
[423060106,1779807051000,-2904.96006638,0.0003917,120]
[423060076,1779807051000,-800.0,0.0003917,120]
[423060078,1779807051000,-800.0,0.0003917,120]
[423060080,1779807051000,-800.0,0.0003917,120]
[423060079,1779807051000,-800.0,0.0003917,120]
[423060081,1779807051000,-800.0,0.0003917,120]
[423060083,1779807051000,-800.0,0.0003917,120]
[423060084,1779807051000,-800.0,0.0003917,120]
[423060085,1779807051000,-794.7871964,0.0003917,120]
[423060086,1779807051000,-500.0,0.0003917,120]
[423060087,1779807051000,-500.0,0.0003917,120]
[423060088,1779807051000,-500.0,0.0003917,120]
[423060089,1779807051000,-500.0,0.0003917,120]
[423060091,1779807051000,-500.0,0.0003917,120]
[423060126,1779807051000,-1729.1,0.00039171,10]
[423060092,1779807051000,-407.14284089,0.0003917,120]
[423060090,1779807051000,-500.0,0.0003917,120]
[423060103,1779807051000,-222.0,0.0003917,60]
[423060104,1779807051000,-186.69446178,0.0003917,7]
[423060102,1779807051000,-459.54233965,0.0003917,120]
[423060098,1779807051000,-500.0,0.0003917,120]
[423060100,1779807051000,-500.0,0.0003917,120]
[423060101,1779807051000,-500.0,0.0003917,120]
[423060094,1779807051000,-1027.90256411,0.0003917,120]
[423060096,1779807051000,-500.0,0.0003917,120]
[423060097,1779807051000,-500.0,0.0003917,120]
[423060095,1779807051000,-500.0,0.0003917,120]
[423060093,1779807051000,-500.0,0.0003917,120]
[423060099,1779807051000,-500.0,0.0003917,120]
[423060150,1779807052000,-500.0,0.00039171,7]
[423060153,1779807052000,-500.0,0.00039171,7]
[423060154,1779807052000,-500.0,0.00039171,7]
[423060151,1779807052000,-500.0,0.00039171,7]
[423060152,1779807052000,-500.0,0.00039171,7]
[423060146,1779807052000,-500.0,0.00039171,7]
[423060147,1779807052000,-500.0,0.00039171,7]
[423060148,1779807052000,-500.0,0.00039171,7]
[423060141,1779807052000,-500.0,0.00039171,7]
[423060149,1779807052000,-500.0,0.00039171,7]
[423060142,1779807052000,-500.0,0.00039171,7]
[423060143,1779807052000,-500.0,0.00039171,7]
[423060144,1779807052000,-500.0,0.00039171,7]
[423060138,1779807052000,-1729.16860429,0.00039171,10]
[423060137,1779807052000,-1729.1,0.00039171,10]
[423060140,1779807052000,-500.0,0.00039171,7]
[423060139,1779807052000,-500.0,0.00039171,7]
[423060145,1779807052000,-500.0,0.00039171,7]
[423060157,1779807052000,-500.0,0.00039171,7]
[423060156,1779807052000,-500.0,0.00039171,7]
[423060162,1779807052000,-15470.65,0.00039171,11]
[423060175,1779807052000,-961.205791,0.00038999,30]
[423060174,1779807052000,-1025.33117033,0.00038999,30]
[423060155,1779807052000,-500.0,0.00039171,7]
[423060172,1779807052000,-500.0,0.00039171,14]
[423060171,1779807052000,-15470.65,0.00039171,11]
[423060170,1779807052000,-500.0,0.00039171,14]
[423060168,1779807052000,-15470.65,0.00039171,11]
[423060169,1779807052000,-15470.65,0.00039171,11]
[423060173,1779807052000,-7943.82427314,0.00039171,11]
[423060165,1779807052000,-15470.65,0.00039171,11]
[423060167,1779807052000,-15470.65,0.00039171,11]
[423060160,1779807052000,-15470.65,0.00039171,11]
[423060158,1779807052000,-500.0,0.00039171,7]
[423060166,1779807052000,-15470.65,0.00039171,11]
[423060161,1779807052000,-15470.65,0.00039171,11]
[423060159,1779807052000,-15470.65,0.00039171,11]
[423060164,1779807052000,-15470.65,0.00039171,11]
[423060163,1779807052000,-15470.65,0.00039171,11]
[423060178,1779807172000,4000.0,0.00028082,120]
[423060182,1779807472000,177.65,0.00011417,2]
[423060186,1779807473000,177.65,0.00013821,2]
[423060185,1779807473000,177.65,0.0001322,2]
[423060184,1779807473000,177.65,0.00012619,2]
[423060183,1779807473000,177.65,0.00012018,2]
[423060187,1779807474000,177.65,0.00014422,2]
[423060195,1779808008000,250.0,0.00014,2]
[423060196,1779808022000,915.0,0.00028082,120]
[423060197,1779808027000,164.0,0.00015,2]
[423060198,1779808047000,165.0,0.00028,120]
[423060200,1779808172000,1536.64272269,0.0002,120]
[423060282,1779808232000,-165.9,0.00021517,2]
[423060254,1779808232000,-159.0,0.0002,2]
[423060252,1779808232000,-154.0,0.0002,2]
[423060234,1779808232000,-177.65,0.00018027,2]
[423060231,1779808232000,-177.65,0.00016825,2]
[423060235,1779808232000,-650.5,0.0001841,2]
[423060233,1779808232000,-177.65,0.00017426,2]
[423060248,1779808232000,-198.0,0.0002,2]
[423060229,1779808232000,-250.0,0.00016525,2]
[423060246,1779808232000,-1200.0,0.00019999,2]
[423060250,1779808232000,-159.0,0.0002,2]
[423060244,1779808232000,-250.0,0.0001985,2]
[423060239,1779808232000,-177.65,0.00019229,2]
[423060227,1779808232000,-650.5,0.00016438,2]
[423060225,1779808232000,-177.65,0.00016225,2]
[423060219,1779808232000,-123.36687517,0.00015323,2]
[423060221,1779808232000,-177.65,0.00015624,2]
[423060223,1779808232000,-300.0,0.00016,2]
[423060215,1779808232000,-177.65,0.00015023,2]
[423060217,1779808232000,-216.003476,0.00015323,2]
[423060283,1779808232000,-2498.31,0.00021541,2]
[423060241,1779808232000,-177.65,0.0001983,2]
[423060257,1779808232000,-300.0,0.0002,2]
[423060237,1779808232000,-177.65,0.00018628,2]
[423060256,1779808232000,-170.0,0.0002,2]
[423060261,1779808232000,-295.0,0.0002,2]
[423060284,1779808232000,-1740.03167195,0.00021556,2]
[423060281,1779808232000,-387.98,0.00021448,2]
[423060280,1779808232000,-644.62,0.00021394,2]
[423060279,1779808232000,-1549.86,0.00021327,2]
[423060278,1779808232000,-610.79,0.00021273,2]
[423060275,1779808232000,-152.0,0.00021,2]
[423060276,1779808232000,-177.65,0.00021032,2]
[423060274,1779808232000,-295.0,0.00021,2]
[423060270,1779808232000,-198.0,0.00021,2]
[423060277,1779808232000,-476.56,0.00021273,2]
[423060273,1779808232000,-155.0,0.00021,2]
[423060263,1779808232000,-152.0,0.0002,2]
[423060271,1779808232000,-165.0,0.00021,2]
[423060264,1779808232000,-1160.02111465,0.0002,2]
[423060259,1779808232000,-155.0,0.0002,2]
[423060266,1779808232000,-650.5,0.00020381,2]
[423060265,1779808232000,-1740.03167195,0.0002,2]
[423060267,1779808232000,-177.65,0.00020431,2]
[423060268,1779808232000,-1160.02111463,0.00020567,2]
[423060269,1779808232000,-1740.03167195,0.00020769,2]
[423060272,1779808232000,-159.0,0.00021,2]
[423060329,1779808233000,-295.0,0.00024,2]
[423060322,1779808233000,-333.54,0.00023251,2]
[423060327,1779808233000,-333.54,0.00023791,2]
[423060332,1779808233000,-4199.28,0.0002435,2]
[423060323,1779808233000,-1335.6,0.00023323,2]
[423060331,1779808233000,-650.5,0.00024324,2]
[423060320,1779808233000,-163.0,0.00023,2]
[423060321,1779808233000,-166.66,0.0002302,30]
[423060330,1779808233000,-166.66,0.00024171,30]
[423060313,1779808233000,-748.46,0.00022466,2]
[423060328,1779808233000,-198.0,0.00024,2]
[423060318,1779808233000,-163.0,0.00023,2]
[423060333,1779808233000,-700.0,0.000246,8]
[423060324,1779808233000,-9018.17,0.00023384,2]
[423060340,1779808233000,-3560.4673,0.00024799,2]
[423060325,1779808233000,-200.0,0.00023399,2]
[423060334,1779808233000,-1000.0,0.00024658,2]
[423060337,1779808233000,-11895.11787911,0.00024699,2]
[423060335,1779808233000,-164.6,0.00024658,2]
[423060338,1779808233000,-1400.0,0.000247,9]
[423060344,1779808233000,-150.0,0.00024895,2]
[423060336,1779808233000,-28821.49222089,0.00024699,2]
[423060343,1779808233000,-544.47241781,0.000248,2]
[423060339,1779808233000,-5146.2264,0.00024799,2]
[423060341,1779808233000,-165.22041017,0.000248,2]
[423060345,1779808233000,-484.21201839,0.00024899,2]
[423060342,1779808233000,-2200.0,0.000248,9]
[423060315,1779808233000,-177.65,0.00022834,2]
[423060326,1779808233000,-166.66,0.00023595,30]
[423060311,1779808233000,-166.66,0.00022444,30]
[423060293,1779808233000,-360.7,0.00021767,2]
[423060316,1779808233000,-198.0,0.00023,2]
[423060286,1779808233000,-500.0,0.00021594,2]
[423060285,1779808233000,-631.22,0.00021576,2]
[423060287,1779808233000,-150.0,0.00021605,2]
[423060288,1779808233000,-333.54,0.00021629,2]
[423060289,1779808233000,-500.0,0.00021633,2]
[423060290,1779808233000,-177.65,0.00021633,2]
[423060292,1779808233000,-163.36,0.0002167,2]
[423060354,1779808233000,-500.0,0.00024899,2]
[423060291,1779808233000,-489.26,0.00021646,2]
[423060294,1779808233000,-166.66,0.00021869,2]
[423060296,1779808233000,-50726.59443344,0.000219,2]
[423060301,1779808233000,-198.0,0.00022,2]
[423060303,1779808233000,-155.0,0.00022,2]
[423060304,1779808233000,-295.0,0.00022,2]
[423060297,1779808233000,-72223.66663694,0.000219,2]
[423060299,1779808233000,-5000.0,0.00021918,2]
[423060300,1779808233000,-1378.0,0.00022,10]
[423060298,1779808233000,-56388.38612962,0.000219,2]
[423060302,1779808233000,-159.0,0.00022,2]
[423060305,1779808233000,-152.0,0.00022,2]
[423060295,1779808233000,-500.0,0.000219,2]
[423060306,1779808233000,-333.54,0.00022169,2]
[423060307,1779808233000,-177.65,0.00022234,2]
[423060314,1779808233000,-333.54,0.0002271,2]
[423060312,1779808233000,-1280.56,0.00022466,2]
[423060319,1779808233000,-295.0,0.00023,2]
[423060310,1779808233000,-650.5,0.00022353,2]
[423060309,1779808233000,-1740.03167195,0.00022344,2]
[423060308,1779808233000,-166.93,0.00022335,2]
[423060317,1779808233000,-160.0,0.00023,2]
[423060353,1779808233000,-500.0,0.00024899,2]
[423060357,1779808233000,-984.11099722,0.00024899,2]
[423060355,1779808233000,-500.0,0.00024899,2]
[423060379,1779808233000,-984.11099722,0.00024899,2]
[423060381,1779808233000,-984.11099722,0.00024899,2]
[423060385,1779808233000,-984.11099722,0.00024899,2]
[423060388,1779808233000,-984.11099722,0.00024899,2]
[423060387,1779808233000,-984.11099722,0.00024899,2]
[423060386,1779808233000,-984.11099722,0.00024899,2]
[423060394,1779808233000,-984.11099722,0.00024899,2]
[423060397,1779808233000,-487.71649942,0.00024899,2]
[423060395,1779808233000,-984.11099722,0.00024899,2]
[423060396,1779808233000,-984.11099722,0.00024899,2]
[423060391,1779808233000,-984.11099722,0.00024899,2]
[423060389,1779808233000,-984.11099722,0.00024899,2]
[423060390,1779808233000,-984.11099722,0.00024899,2]
[423060398,1779808233000,-984.11099722,0.00024899,2]
[423060393,1779808233000,-984.11099722,0.00024899,2]
[423060392,1779808233000,-984.11099722,0.00024899,2]
[423060400,1779808233000,-1001.22597109,0.00024899,2]
[423060410,1779808233000,-1001.22597109,0.00024899,2]
[423060346,1779808233000,-500.0,0.00024899,2]
[423060402,1779808233000,-1001.22597109,0.00024899,2]
[423060401,1779808233000,-1001.22597109,0.00024899,2]
[423060403,1779808233000,-1001.22597109,0.00024899,2]
[423060406,1779808233000,-1001.22597109,0.00024899,2]
[423060404,1779808233000,-1001.22597109,0.00024899,2]
[423060405,1779808233000,-1001.22597109,0.00024899,2]
[423060408,1779808233000,-1001.22597109,0.00024899,2]
[423060407,1779808233000,-1001.22597109,0.00024899,2]
[423060409,1779808233000,-1001.22597109,0.00024899,2]
[423060411,1779808233000,-1001.22597109,0.00024899,2]
[423060384,1779808233000,-984.11099722,0.00024899,2]
[423060378,1779808233000,-984.11099722,0.00024899,2]
[423060399,1779808233000,-1001.22597109,0.00024899,2]
[423060374,1779808233000,-984.11099722,0.00024899,2]
[423060380,1779808233000,-984.11099722,0.00024899,2]
[423060358,1779808233000,-984.11099722,0.00024899,2]
[423060356,1779808233000,-368.62131532,0.00024899,2]
[423060347,1779808233000,-316.84772132,0.00024899,2]
[423060352,1779808233000,-500.0,0.00024899,2]
[423060350,1779808233000,-300.20693406,0.00024899,2]
[423060351,1779808233000,-500.0,0.00024899,2]
[423060348,1779808233000,-151.5177913,0.00024899,2]
[423060359,1779808233000,-984.11099722,0.00024899,2]
[423060363,1779808233000,-984.11099722,0.00024899,2]
[423060362,1779808233000,-984.11099722,0.00024899,2]
[423060364,1779808233000,-984.11099722,0.00024899,2]
[423060370,1779808233000,-984.11099722,0.00024899,2]
[423060365,1779808233000,-984.11099722,0.00024899,2]
[423060349,1779808233000,-500.0,0.00024899,2]
[423060366,1779808233000,-984.11099722,0.00024899,2]
[423060376,1779808233000,-984.11099722,0.00024899,2]
[423060367,1779808233000,-984.11099722,0.00024899,2]
[423060383,1779808233000,-984.11099722,0.00024899,2]
[423060372,1779808233000,-984.11099722,0.00024899,2]
[423060377,1779808233000,-984.11099722,0.00024899,2]
[423060375,1779808233000,-984.11099722,0.00024899,2]
[423060382,1779808233000,-984.11099722,0.00024899,2]
[423060369,1779808233000,-984.11099722,0.00024899,2]
[423060368,1779808233000,-984.11099722,0.00024899,2]
[423060371,1779808233000,-984.11099722,0.00024899,2]
[423060361,1779808233000,-984.11099722,0.00024899,2]
[423060360,1779808233000,-984.11099722,0.00024899,2]
[423060373,1779808233000,-984.11099722,0.00024899,2]
[423060438,1779808234000,-500.0,0.00024899,2]
[423060441,1779808234000,-904.56915619,0.00024899,2]
[423060436,1779808234000,-441.21084259,0.00024899,2]
[423060434,1779808234000,-129.9253232,0.00024899,2]
[423060437,1779808234000,-500.0,0.00024899,2]
[423060439,1779808234000,-188.71448061,0.00024899,2]
[423060435,1779808234000,-370.0746768,0.00024899,2]
[423060442,1779808234000,-904.56915619,0.00024899,2]
[423060440,1779808234000,-715.85467558,0.00024899,2]
[423060449,1779808234000,-904.56915619,0.00024899,2]
[423060443,1779808234000,-904.56915619,0.00024899,2]
[423060444,1779808234000,-904.56915619,0.00024899,2]
[423060445,1779808234000,-904.56915619,0.00024899,2]
[423060447,1779808234000,-904.56915619,0.00024899,2]
[423060450,1779808234000,-904.56915619,0.00024899,2]
[423060448,1779808234000,-904.56915619,0.00024899,2]
[423060446,1779808234000,-904.56915619,0.00024899,2]
[423060433,1779808234000,-142.19819992,0.00024899,2]
[423060451,1779808234000,-904.56915619,0.00024899,2]
[423060430,1779808234000,-468.04657286,0.00024899,2]
[423060418,1779808234000,-1001.22597109,0.00024899,2]
[423060432,1779808234000,-354.00232647,0.00024899,2]
[423060413,1779808234000,-1001.22597109,0.00024899,2]
[423060412,1779808234000,-1001.22597109,0.00024899,2]
[423060414,1779808234000,-1001.22597109,0.00024899,2]
[423060453,1779808234000,-904.56915619,0.00024899,2]
[423060415,1779808234000,-1001.22597109,0.00024899,2]
[423060416,1779808234000,-1001.22597109,0.00024899,2]
[423060417,1779808234000,-1001.22597109,0.00024899,2]
[423060419,1779808234000,-1001.22597109,0.00024899,2]
[423060428,1779808234000,-1001.22597109,0.00024899,2]
[423060421,1779808234000,-1001.22597109,0.00024899,2]
[423060423,1779808234000,-1001.22597109,0.00024899,2]
[423060422,1779808234000,-1001.22597109,0.00024899,2]
[423060424,1779808234000,-1001.22597109,0.00024899,2]
[423060427,1779808234000,-1001.22597109,0.00024899,2]
[423060425,1779808234000,-1001.22597109,0.00024899,2]
[423060426,1779808234000,-1001.22597109,0.00024899,2]
[423060429,1779808234000,-533.17939823,0.00024899,2]
[423060431,1779808234000,-3.79947361,0.00024899,2]
[423060420,1779808234000,-1001.22597109,0.00024899,2]
[423060452,1779808234000,-904.56915619,0.00024899,2]
[423060490,1779808234000,-995.72818816,0.0002499,2]
[423060454,1779808234000,-904.56915619,0.00024899,2]
[423060476,1779808234000,-500.0,0.00024899,2]
[423060479,1779808234000,-500.0,0.00024899,2]
[423060478,1779808234000,-500.0,0.00024899,2]
[423060483,1779808234000,-209.83251922,0.00024899,2]
[423060486,1779808234000,-309.83251922,0.00024899,2]
[423060480,1779808234000,-190.04126143,0.00024899,2]
[423060484,1779808234000,-500.0,0.00024899,2]
[423060482,1779808234000,-290.16748078,0.00024899,2]
[423060485,1779808234000,-190.16748078,0.00024899,2]
[423060481,1779808234000,-309.95873857,0.00024899,2]
[423060491,1779808234000,-217.0,0.00025,2]
[423060492,1779808234000,-310.0,0.00025,2]
[423060493,1779808234000,-167.29,0.00025,2]
[423060489,1779808234000,-2900.0,0.000249,9]
[423060494,1779808234000,-506.0,0.00025082,2]
[423060495,1779808234000,-503.00003,0.00025082,2]
[423060496,1779808234000,-64.30158677,0.000256,2]
[423060487,1779808234000,-384.87523742,0.00024899,2]
[423060477,1779808234000,-500.0,0.00024899,2]
[423060488,1779808234000,-186.63,0.000249,7]
[423060473,1779808234000,-500.0,0.00024899,2]
[423060474,1779808234000,-500.0,0.00024899,2]
[423060455,1779808234000,-904.56915617,0.00024899,2]
[423060457,1779808234000,-500.0,0.00024899,2]
[423060464,1779808234000,-500.0,0.00024899,2]
[423060458,1779808234000,-500.0,0.00024899,2]
[423060456,1779808234000,-500.0,0.00024899,2]
[423060462,1779808234000,-544.07333306,0.00024899,2]
[423060461,1779808234000,-398.14317714,0.00024899,2]
[423060459,1779808234000,-500.0,0.00024899,2]
[423060463,1779808234000,-278.5545033,0.00024899,2]
[423060467,1779808234000,-500.0,0.00024899,2]
[423060475,1779808234000,-300.0,0.00024899,10]
[423060465,1779808234000,-500.0,0.00024899,2]
[423060470,1779808234000,-500.0,0.00024899,2]
[423060468,1779808234000,-500.0,0.00024899,2]
[423060469,1779808234000,-500.0,0.00024899,2]
[423060472,1779808234000,-468.10640747,0.00024899,2]
[423060466,1779808234000,-500.0,0.00024899,2]
[423060471,1779808234000,-351.15061669,0.00024899,2]
[423060460,1779808234000,-500.0,0.00024899,2]
[423060509,1779808238000,-288.399994,0.000256,2]
[423060514,1779808238000,-647.29841923,0.000256,2]
[423060515,1779808238000,-406.8093477,0.00025786,2]
[423060517,1779808239000,-610.79,0.00025786,2]
[423060516,1779808239000,-69.7506523,0.00025786,2]
[423060518,1779808239000,-506.0,0.00026029,3]
[423060519,1779808239000,-489.26,0.00026084,2]
[423060521,1779808239000,-650.5,0.00026296,2]
[423060522,1779808239000,-544.47241777,0.00026388,2]
[423060525,1779808239000,-300.0,0.000267,7]
[423060523,1779808239000,-254.775413,0.00026397,2]
[423060524,1779808239000,-258.7943203,0.00026397,2]
[423060526,1779808239000,-6105.94375012,0.000268,2]
[423060527,1779808239000,-2516.17685002,0.000268,2]
[423060529,1779808239000,-65.04860014,0.000268,2]
[423060520,1779808239000,-1335.6,0.00026238,2]
[423060528,1779808239000,-2180.85939986,0.000268,2]
[423060539,1779808240000,-1500.0,0.00027397,2]
[423060532,1779808240000,192.56,0.00014651,2]
[423060534,1779808240000,-831.17,0.000268,2]
[423060533,1779808240000,-766.12139986,0.000268,2]
[423060535,1779808240000,-506.0,0.00026976,4]
[423060536,1779808240000,-897.64164018,0.00027122,2]
[423060537,1779808240000,-1913.85,0.00027122,2]
[423060540,1779808240000,-164.6,0.00027397,2]
[423060538,1779808240000,-11294.53645982,0.00027122,2]
[423060541,1779808240000,-300.0,0.00027397,2]
[423060544,1779808240000,-6271.14,0.00027397,2]
[423060542,1779808240000,-12760.47,0.00027397,10]
[423060545,1779808240000,-6814.8,0.00027397,2]
[423060549,1779808240000,-300.0,0.000275,7]
[423060546,1779808240000,-19140.4,0.00027397,10]
[423060547,1779808240000,-2559.86,0.00027397,2]
[423060548,1779808240000,-3145.5,0.00027397,2]
[423060550,1779808240000,-150.0,0.00027521,2]
[423060543,1779808240000,-150.99,0.00027397,2]
[423060604,1779808241000,-150.0,0.00029486,30]
[423060593,1779808241000,-173.18,0.0002874,7]
[423060594,1779808241000,-506.0,0.0002887,6]
[423060591,1779808241000,-173.18,0.0002848,30]
[423060580,1779808241000,-831.17,0.000282,2]
[423060584,1779808241000,-173.18,0.00028221,2]
[423060590,1779808241000,-173.16,0.00028476,30]
[423060579,1779808241000,-10802.98,0.000282,2]
[423060596,1779808241000,-170.07957496,0.00028971,2]
[423060578,1779808241000,-160.57,0.00028175,2]
[423060592,1779808241000,-173.16,0.00028738,7]
[423060613,1779808241000,-158.0,0.00029585,30]
[423060606,1779808241000,-544.47241777,0.00029565,2]
[423060599,1779808241000,-186.48,0.00029,2]
[423060600,1779808241000,-1335.6,0.00029153,120]
[423060581,1779808241000,-831.17,0.000282,2]
[423060597,1779808241000,-344.4245146,0.00029,2]
[423060602,1779808241000,-1500.0,0.000293,7]
[423060603,1779808241000,-192.56,0.00029302,2]
[423060598,1779808241000,-10000.0,0.00029,2]
[423060601,1779808241000,-1897.04718567,0.00029195,2]
[423060607,1779808241000,-154.0,0.00029585,30]
[423060608,1779808241000,-156.0,0.00029585,30]
[423060617,1779808241000,-152.0,0.00029597,30]
[423060618,1779808241000,-181.0,0.00029597,30]
[423060615,1779808241000,-295.0,0.00029585,30]
[423060595,1779808241000,-150.0,0.00028897,2]
[423060586,1779808241000,-650.5,0.00028267,2]
[423060571,1779808241000,-173.18,0.00027961,7]
[423060588,1779808241000,-174.39726678,0.00028397,7]
[423060553,1779808241000,-487.0,0.000276,2]
[423060554,1779808241000,-672.7,0.000276,2]
[423060551,1779808241000,-942.15,0.000276,14]
[423060552,1779808241000,-487.0,0.000276,2]
[423060555,1779808241000,-160.58,0.00027614,30]
[423060556,1779808241000,-160.58,0.0002762,30]
[423060559,1779808241000,-160.17,0.00027773,2]
[423060558,1779808241000,-173.18,0.00027702,30]
[423060562,1779808241000,-10802.98,0.000278,2]
[423060563,1779808241000,-831.17,0.000278,2]
[423060557,1779808241000,-173.16,0.0002769,30]
[423060560,1779808241000,-168.32,0.00027778,2]
[423060582,1779808241000,-173.16,0.00028214,2]
[423060564,1779808241000,-831.17,0.000278,2]
[423060565,1779808241000,-165.22041017,0.0002787,2]
[423060566,1779808241000,-160.58,0.00027891,7]
[423060567,1779808241000,-160.58,0.00027896,7]
[423060568,1779808241000,-506.0,0.00027923,5]
[423060572,1779808241000,-544.47241777,0.00027976,2]
[423060569,1779808241000,-160.17,0.00027951,7]
[423060570,1779808241000,-173.16,0.00027952,7]
[423060577,1779808241000,-160.58,0.00028172,2]
[423060575,1779808241000,-168.33,0.0002813,7]
[423060574,1779808241000,-168.65,0.0002813,7]
[423060576,1779808241000,-160.58,0.00028168,2]
[423060573,1779808241000,-150.0,0.00028082,30]
[423060561,1779808241000,-10633.73,0.0002779,10]
[423060614,1779808241000,-155.0,0.00029585,30]
[423060605,1779808241000,-942.15,0.000295,14]
[423060616,1779808241000,-159.0,0.00029585,30]
[423060667,1779808241000,-162.0,0.00031585,30]
[423060669,1779808241000,-198.0,0.00031585,30]
[423060671,1779808241000,-151.0,0.00031585,30]
[423060652,1779808241000,-165.22041017,0.0003094,2]
[423060658,1779808241000,-168.0,0.0003108,2]
[423060654,1779808241000,-305.44703743,0.00030952,7]
[423060673,1779808241000,-154.0,0.00031585,30]
[423060656,1779808241000,-671.0,0.0003108,2]
[423060675,1779808241000,-159.0,0.00031585,30]
[423060679,1779808241000,-155.0,0.00031585,30]
[423060688,1779808241000,-942.15,0.000316,14]
[423060687,1779808241000,-181.0,0.00031597,30]
[423060677,1779808241000,-158.0,0.00031585,30]
[423060690,1779808241000,-6062.0,0.00031614,2]
[423060685,1779808241000,-152.0,0.00031597,30]
[423060691,1779808241000,-3636.0,0.00031614,2]
[423060683,1779808241000,-159.0,0.00031585,30]
[423060681,1779808241000,-295.0,0.00031585,30]
[423060693,1779808241000,-150.0,0.00031858,2]
[423060692,1779808241000,-506.0,0.0003171,9]
[423060695,1779808241000,-500.0,0.00032115,2]
[423060694,1779808241000,-1335.6,0.00032069,120]